fUST/lending_fUST_20240117
["ID","MTS","AMOUNT","RATE_DAILY","PERIOD"]
[311887721,1705489847600,-608.64434299,0.00022465,2]
[311887723,1705489847608,-500.0,0.00022465,2]
[311887725,1705489847617,-551.21,0.00022465,2]
[311887727,1705489847626,-6578.37,0.00022465,2]
[311887729,1705489847635,-1266.74,0.00022465,2]
[311887731,1705489847644,-500.0,0.00022465,2]
[311887733,1705489847654,-500.0,0.00022465,2]
[311887735,1705489847662,-138.61098388,0.00022465,2]
[311887746,1705489847755,-1525.50901612,0.00022465,2]
[311887748,1705489847764,-1462.7,0.00022465,2]
[311887750,1705489847773,-500.0,0.00022465,2]
[311887752,1705489847781,-247.66919236,0.00022465,2]
[311887808,1705489848305,-500.0,0.00021917,2]
[311887810,1705489848315,-184.012676,0.00022054,2]
[311887812,1705489848325,-184.012676,0.00022191,2]
[311887814,1705489848335,-184.012676,0.00022191,2]
[311887816,1705489848348,-184.012676,0.00022328,2]
[311887818,1705489848357,-184.012676,0.00022465,2]
[311887820,1705489848366,-184.012676,0.00022465,2]
[311887822,1705489848375,-1452.54080764,0.00022465,2]
[311887824,1705489848384,-683.72,0.00022465,2]
[311887826,1705489848393,-860.28,0.00022465,2]
[311887828,1705489848402,-17111.67,0.00022465,2]
[311887830,1705489848411,-753.96,0.00022465,2]
[311887832,1705489848421,-6790.1,0.00022465,2]
[311887834,1705489848431,-500.0,0.00022465,2]
[311887836,1705489848440,-500.0,0.00022465,2]
[311887838,1705489848449,-500.0,0.00022465,2]
[311887840,1705489848459,-153.0,0.00022466,2]
[311887842,1705489848468,-151.0,0.00022602,2]
[311887844,1705489848478,-151.0,0.00022602,2]
[311887846,1705489848486,-264.664227,0.00022602,2]
[311887848,1705489848496,-264.664227,0.00022602,2]
[311887850,1705489848505,-264.664227,0.00022602,2]
[311887852,1705489848514,-264.664227,0.00022602,2]
[311887854,1705489848522,-184.012676,0.00022602,2]
[311887856,1705489848532,-184.012676,0.00022602,2]
[311887858,1705489848542,-154.98450155,0.00022602,2]
[311887860,1705489848551,-300.0,0.00022602,2]
[311887862,1705489848560,-1824.28362895,0.00022602,2]
[311887864,1705489848569,-200.0,0.00022602,2]
[311887866,1705489848579,-500.0,0.00022602,2]
[311887868,1705489848588,-342.75344633,0.00022602,2]
[311887870,1705489848597,-308.87329957,0.00022602,2]
[311887872,1705489848606,-500.0,0.00022602,2]
[311887874,1705489848615,-6075.38299996,0.00022602,2]
[311887877,1705489848626,-301.53372224,0.00022602,2]
[311887879,1705489848637,-999.53332992,0.00022602,2]
[311903576,1705491037805,-154.98450155,0.00019705,2]
[311903578,1705491037815,-329.24416506,0.00019705,2]
[311903580,1705491037824,-154.98450155,0.00019706,3]
[311903582,1705491037834,-154.98450155,0.00019707,2]
[311903584,1705491037843,-761.96494906,0.00019724,2]
[311903586,1705491037852,-300.0,0.0002,2]
[311903588,1705491037861,-616.51710907,0.00020364,2]
[311903590,1705491037870,-150.0,0.00020365,2]
[311903592,1705491037879,-1113.19848064,0.00021,2]
[311903893,1705491040755,-702.48473234,0.00021,2]
[311903895,1705491040765,-5000.0,0.00021258,5]
[311903897,1705491040776,-327.18048,0.00021548,2]
[311903900,1705491040797,-9111.67082876,0.0002155,2]
[311903902,1705491040809,-5692.02183867,0.00021696,2]
[311903904,1705491040819,-170.25272059,0.00021815,2]
[311903906,1705491040830,-170.49588421,0.00021817,2]
[311903908,1705491040840,-5058.6,0.00021905,3]
[311903910,1705491040850,-461.95588786,0.00021906,2]
[311903912,1705491040862,-8740.52,0.00021907,3]
[311903915,1705491040873,-7333.98502279,0.00021914,2]
[311903918,1705491040900,-9842.0167695,0.00021914,2]
[311903920,1705491040911,-1196.71363385,0.00021915,2]
[311903922,1705491040921,-768.44009764,0.00021915,5]
[311903924,1705491040933,-242.74458281,0.00021916,2]
[311903927,1705491040943,-503.33303702,0.00021917,2]
[311903928,1705491040953,-500.0,0.00021917,2]
[311903931,1705491040963,-500.0,0.00021917,2]
[311903933,1705491040973,-500.0,0.00021917,2]
[311903935,1705491040985,-500.0,0.00021917,2]
[311903937,1705491040995,-500.0,0.00021917,2]
[311903939,1705491041005,-611.52886073,0.00021917,2]
[311903941,1705491041015,-500.0,0.00021917,2]
[311903943,1705491041025,-500.0,0.00021917,2]
[311903945,1705491041036,-500.0,0.00021917,2]
[311903947,1705491041046,-545.63986365,0.00021917,2]
[311903949,1705491041056,-393.52104807,0.00021917,2]
[311904138,1705491042745,-106.47895193,0.00021917,2]
[311904140,1705491042755,-500.0,0.00021917,2]
[311904142,1705491042764,-7.78104798,0.00021917,2]
[311906324,1705491073052,1714.150029,0.000231,30]
[311906346,1705491972970,150.0,0.000231,30]
[311906347,1705491980019,-4032.76106376,0.00021259,5]
[311906350,1705492186943,237.0042338,0.00018753,2]
[311906351,1705492217262,154.9690062,0.00018753,2]
[311906352,1705492219572,3000.0,0.00018753,2]
[311906390,1705492237268,164.6259532,0.00018753,2]
[311906405,1705492237998,-154.9690062,0.00019555,3]
[311906407,1705492238007,-154.9690062,0.00019556,2]
[311906409,1705492238017,-164.372067,0.00019657,2]
[311906411,1705492238026,-170.25272058,0.00019717,2]
[311906413,1705492238035,-7953.18776953,0.00019739,2]
[311906415,1705492238044,-24900.0,0.0001974,2]
[311906417,1705492238054,-482.8201433,0.00019817,2]
[311906419,1705492238064,-1815.68321298,0.00021,2]
[311906421,1705492238077,-327.18048,0.00021,2]
[311906423,1705492238086,-200.0,0.00021259,2]
[311906425,1705492238095,-1824.28362895,0.00021259,2]
[311906427,1705492238108,-2857.64942533,0.00021259,2]
[311906428,1705492238119,-200.0,0.00021712,7]
[311906430,1705492238128,-879.43811936,0.00021817,2]
[311906432,1705492238137,-6643.55,0.00021907,3]
[311906434,1705492238146,-6176.5,0.00021907,3]
[311906436,1705492238157,-5147.09,0.00021907,3]
[311906439,1705492238166,-677.30340506,0.00021915,2]
[311906440,1705492238176,-1089.16549599,0.00021915,2]
[311906442,1705492238185,-7987.09073251,0.00021915,2]
[311906445,1705492238195,-1195.69868667,0.00021915,2]
[311906446,1705492238205,-848.66817018,0.00021915,2]
[311906448,1705492238215,-548.14196158,0.00021915,2]
[311906450,1705492238224,-1239.86675949,0.00021915,2]
[311906453,1705492238233,-154.9690062,0.00021915,2]
[311906455,1705492238243,-154.9690062,0.00021915,2]
[311906457,1705492238253,-154.9690062,0.00021915,2]
[311906459,1705492238263,-451.72930025,0.00021916,2]
[311906461,1705492238272,-328.98598783,0.00021916,2]
[311906463,1705492238281,-155.1216405,0.00021916,2]
[311906465,1705492238291,-500.0,0.00021917,2]
[311906467,1705492238300,-500.0,0.00021917,2]
[311906469,1705492238309,-500.0,0.00021917,2]
[311906470,1705492238319,-164.71281458,0.00021917,2]
[311906472,1705492238328,-500.0,0.00021917,2]
[311906474,1705492238338,-500.0,0.00021917,2]
[311906476,1705492238347,-500.0,0.00021917,2]
[311906478,1705492238357,-500.0,0.00021917,2]
[311906480,1705492238366,-500.0,0.00021917,2]
[311906482,1705492238376,-500.0,0.00021917,2]
[311906484,1705492238385,-508.74722001,0.00021917,2]
[311906486,1705492238393,-500.0,0.00021917,2]
[311906488,1705492238402,-500.0,0.00021917,2]
[311906490,1705492238411,-500.0,0.00021917,2]
[311906492,1705492238420,-500.0,0.00021917,2]
[311906494,1705492238429,-500.0,0.00021917,2]
[311906496,1705492238438,-500.0,0.00021917,2]
[311906498,1705492238447,-500.0,0.00021917,2]
[311906500,1705492238456,-500.0,0.00021917,2]
[311906502,1705492238465,-500.0,0.00021917,2]
[311906504,1705492238474,-502.19864855,0.00021917,2]
[311906506,1705492238483,-500.0,0.00021917,2]
[311906508,1705492238492,-500.0,0.00021917,2]
[311906510,1705492238502,-500.0,0.00021917,2]
[311906512,1705492238510,-500.0,0.00021917,2]
[311906514,1705492238519,-551.1,0.00021917,2]
[311906516,1705492238528,-500.0,0.00021917,2]
[311906518,1705492238537,-500.0,0.00021917,2]
[311906520,1705492238546,-500.0,0.00021917,2]
[311906522,1705492238555,-500.0,0.00021917,2]
[311906524,1705492238564,-500.0,0.00021917,2]
[311906526,1705492238573,-500.0,0.00021917,2]
[311906528,1705492238583,-502.99980085,0.00021917,2]
[311906530,1705492238592,-500.0,0.00021917,2]
[311906532,1705492238601,-500.0,0.00021917,2]
[311906534,1705492238611,-500.0,0.00021917,2]
[311906536,1705492238622,-500.0,0.00021917,2]
[311906538,1705492238631,-500.0,0.00021917,2]
[311906540,1705492238640,-566.15,0.00021917,2]
[311906542,1705492238649,-500.0,0.00021917,2]
[311906544,1705492238658,-1032.62,0.00021917,2]
[311906546,1705492238667,-500.0,0.00021917,2]
[311906548,1705492238677,-500.0,0.00021917,2]
[311906550,1705492238686,-500.0,0.00021917,2]
[311906552,1705492238695,-500.0,0.00021917,2]
[311906554,1705492238704,-500.0,0.00021917,2]
[311906556,1705492238717,-500.0,0.00021917,2]
[311906558,1705492238726,-500.0,0.00021917,2]
[311906560,1705492238735,-500.0,0.00021917,2]
[311906562,1705492238744,-500.0,0.00021917,2]
[311906564,1705492238753,-500.0,0.00021917,2]
[311906566,1705492238763,-500.0,0.00021917,2]
[311906568,1705492238772,-500.0,0.00021917,2]
[311906570,1705492238782,-500.0,0.00021917,2]
[311906572,1705492238791,-493.1083161,0.00021917,2]
[311906574,1705492238800,-500.0,0.00021917,2]
[311906576,1705492238809,-500.0,0.00021917,2]
[311906579,1705492238818,-501.14569971,0.00021917,2]
[311906581,1705492238828,-1507.02,0.00021917,2]
[311906583,1705492238837,-2201.11,0.00021917,2]
[311906584,1705492238846,-500.0,0.00021917,2]
[311906586,1705492238856,-500.0,0.00021917,2]
[311906588,1705492238866,-500.0,0.00021917,2]
[311906590,1705492238875,-497.37968749,0.00021917,2]
[311906592,1705492238884,-529.35214172,0.00021917,2]
[311906594,1705492238893,-500.0,0.00021917,2]
[311906596,1705492238902,-500.0,0.00021917,2]
[311906598,1705492238912,-2895.73,0.00021917,2]
[311906600,1705492238921,-500.0,0.00021917,2]
[311906602,1705492238931,-500.0,0.00021917,2]
[311906604,1705492238940,-221.17429449,0.00021917,2]
[311906606,1705492238949,-500.0,0.00021917,2]
[311906608,1705492238959,-505.14162514,0.00021917,2]
[311906610,1705492238969,-500.0,0.00021917,2]
[311906612,1705492238978,-254.97616014,0.00021917,2]
[311906614,1705492238987,-500.0,0.00021917,2]
[311906617,1705492238997,-500.0,0.00021917,2]
[311906619,1705492239006,-500.0,0.00021917,2]
[311906620,1705492239014,-500.80858493,0.00021917,2]
[311906621,1705492239023,-500.0,0.00021917,2]
[311906622,1705492239032,-807.84,0.00021917,2]
[311906623,1705492239041,-490.92752769,0.00021917,2]
[311906633,1705492239128,-500.0,0.00021917,2]
[311906635,1705492239138,-252.51760587,0.00021917,2]
[311906637,1705492239148,-500.0,0.00021917,2]
[311906639,1705492239158,-420.10258733,0.00021917,2]
[311906641,1705492239167,-500.0,0.00021917,2]
[311906643,1705492239176,-500.0,0.00021917,2]
[311906645,1705492239185,-550.0,0.00021917,2]
[311906647,1705492239194,-500.0,0.00021917,2]
[311906649,1705492239203,-500.0,0.00021917,2]
[311906651,1705492239212,-500.0,0.00021917,2]
[311906653,1705492239222,-635.81,0.00021917,2]
[311906655,1705492239231,-718.68,0.00021917,2]
[311906657,1705492239240,-474.31978255,0.00021917,2]
[311906659,1705492239249,-500.0,0.00021917,2]
[311906661,1705492239259,-500.0,0.00021917,2]
[311906663,1705492239268,-500.0,0.00021917,2]
[311906665,1705492239277,-500.0,0.00021917,2]
[311906667,1705492239286,-500.0,0.00021917,2]
[311906669,1705492239296,-504.17724233,0.00021917,2]
[311906671,1705492239305,-1083.38,0.00021917,2]
[311906673,1705492239314,-500.90253928,0.00021917,2]
[311906675,1705492239323,-505.10395311,0.00021917,2]
[311906677,1705492239332,-500.0,0.00021917,2]
[311906679,1705492239341,-628.95,0.00021917,2]
[311906681,1705492239350,-500.0,0.00021917,2]
[311906683,1705492239360,-500.0,0.00021917,2]
[311906685,1705492239369,-506.24672197,0.00021917,2]
[311906687,1705492239378,-500.0,0.00021917,2]
[311906689,1705492239387,-500.0,0.00021917,2]
[311906691,1705492239396,-500.0,0.00021917,2]
[311906693,1705492239405,-505.95267522,0.00021917,2]
[311906695,1705492239414,-500.0,0.00021917,2]
[311906697,1705492239423,-501.47332198,0.00021917,2]
[311906699,1705492239432,-500.0,0.00021917,2]
[311906701,1705492239441,-500.0,0.00021917,2]
[311906703,1705492239450,-500.0,0.00021917,2]
[311906705,1705492239459,-500.0,0.00021917,2]
[311906708,1705492239468,-865.83,0.00021917,2]
[311906710,1705492239477,-500.0,0.00021917,2]
[311906712,1705492239486,-500.0,0.00021917,2]
[311906714,1705492239495,-332.27608059,0.00021917,2]
[311906716,1705492239504,-263.49192401,0.00021917,2]
[311906718,1705492239513,-500.0,0.00021917,2]
[311906720,1705492239522,-500.0,0.00021917,2]
[311906722,1705492239531,-1199.9,0.00021917,2]
[311906724,1705492239540,-500.0,0.00021917,2]
[311906726,1705492239549,-505.28,0.00021917,2]
[311906729,1705492239559,-258.35703301,0.00021917,2]
[311906731,1705492239568,-500.0,0.00021917,2]
[311906733,1705492239577,-500.0,0.00021917,2]
[311906735,1705492239586,-500.0,0.00021917,2]
[311906737,1705492239595,-500.0,0.00021917,2]
[311906739,1705492239604,-500.0,0.00021917,2]
[311906741,1705492239612,-500.0,0.00021917,2]
[311906743,1705492239621,-500.0,0.00021917,2]
[311906745,1705492239630,-500.0,0.00021917,2]
[311906747,1705492239639,-500.0,0.00021917,2]
[311906749,1705492239647,-500.0,0.00021917,2]
[311906751,1705492239656,-500.0,0.00021917,2]
[311906753,1705492239665,-500.0,0.00021917,2]
[311906755,1705492239674,-500.0,0.00021917,2]
[311906757,1705492239683,-500.0,0.00021917,2]
[311906759,1705492239692,-781.25,0.00021917,2]
[311906761,1705492239702,-500.0,0.00021917,2]
[311906763,1705492239714,-500.0,0.00021917,2]
[311906765,1705492239723,-500.0,0.00021917,2]
[311906767,1705492239732,-500.0,0.00021917,2]
[311906769,1705492239741,-500.0,0.00021917,2]
[311906771,1705492239751,-502.1951578,0.00021917,2]
[311906773,1705492239760,-500.0,0.00021917,2]
[311906775,1705492239769,-505.04589673,0.00021917,2]
[311906777,1705492239779,-4294.21,0.00021917,2]
[311906779,1705492239788,-500.0,0.00021917,2]
[311906780,1705492239797,-735.83,0.00021917,2]
[311906783,1705492239806,-1449.51,0.00021917,2]
[311906785,1705492239815,-1598.98,0.00021917,2]
[311906787,1705492239824,-500.29488324,0.00021917,2]
[311906789,1705492239833,-500.0,0.00021917,2]
[311906791,1705492239842,-500.0,0.00021917,2]
[311906793,1705492239850,-806.22,0.00021917,2]
[311906795,1705492239860,-201.66657356,0.00021917,2]
[311906797,1705492239869,-500.0,0.00021917,2]
[311906799,1705492239878,-500.0,0.00021917,2]
[311906800,1705492239887,-500.0,0.00021917,2]
[311906802,1705492239896,-500.0,0.00021917,2]
[311906804,1705492239907,-500.0,0.00021917,2]
[311906807,1705492239916,-787.57,0.00021917,2]
[311906809,1705492239925,-500.0,0.00021917,2]
[311906811,1705492239934,-500.0,0.00021917,2]
[311906813,1705492239943,-500.0,0.00021917,2]
[311906815,1705492239952,-500.0,0.00021917,2]
[311906817,1705492239961,-500.0,0.00021917,2]
[311906819,1705492239970,-500.0,0.00021917,2]
[311906821,1705492239979,-500.0,0.00021917,2]
[311906823,1705492239988,-502.16920952,0.00021917,2]
[311906825,1705492239997,-500.0,0.00021917,2]
[311906827,1705492240006,-639.13,0.00021917,2]
[311906829,1705492240015,-1560.19,0.00021917,2]
[311906830,1705492240023,-500.0,0.00021917,2]
[311906832,1705492240032,-2140.96,0.00021917,2]
[311906834,1705492240041,-500.0,0.00021917,2]
[311906836,1705492240049,-1161.17,0.00021917,2]
[311906839,1705492240059,-500.0,0.00021917,2]
[311906841,1705492240070,-500.0,0.00021917,2]
[311906843,1705492240081,-500.0,0.00021917,2]
[311906845,1705492240089,-1666.72,0.00021917,2]
[311906847,1705492240098,-2537.13,0.00021917,2]
[311906849,1705492240107,-522.0123093,0.00021917,2]
[311906851,1705492240117,-501.70820656,0.00021917,5]
[311906853,1705492240127,-500.0,0.00021917,2]
[311906855,1705492240135,-500.0,0.00021917,2]
[311906857,1705492240144,-500.0,0.00021917,2]
[311906859,1705492240154,-500.0,0.00021917,2]
[311906861,1705492240163,-15685.7,0.00021917,2]
[311906863,1705492240171,-500.0,0.00021917,2]
[311906865,1705492240181,-500.0,0.00021917,2]
[311906867,1705492240190,-600.88725899,0.00021917,2]
[311906869,1705492240198,-598.60148851,0.00021917,2]
[311906871,1705492240207,-500.0,0.00021917,2]
[311906873,1705492240217,-500.0,0.00021917,2]
[311906875,1705492240225,-500.0,0.00021917,2]
[311906877,1705492240234,-14463.17,0.00021917,2]
[311906879,1705492240243,-506.24435026,0.00021917,2]
[311906881,1705492240252,-500.0,0.00021917,2]
[311906883,1705492240261,-500.0,0.00021917,2]
[311906885,1705492240270,-1529.34,0.00021917,2]
[311906887,1705492240279,-1529.34,0.00021917,2]
[311906889,1705492240288,-1529.34,0.00021917,2]
[311906891,1705492240297,-1529.34,0.00021917,2]
[311906893,1705492240307,-1529.34,0.00021917,2]
[311906895,1705492240316,-1529.34,0.00021917,2]
[311906897,1705492240325,-500.0,0.00021917,2]
[311906899,1705492240334,-500.0,0.00021917,2]
[311906900,1705492240343,-789.33,0.00021917,2]
[311906902,1705492240352,-1068.65134143,0.00021917,2]
[311906904,1705492240363,-500.0,0.00021917,2]
[311906907,1705492240372,-626.75,0.00021917,2]
[311906908,1705492240381,-500.0,0.00021917,2]
[311906911,1705492240391,-2596.88,0.00021917,2]
[311906913,1705492240400,-500.0,0.00021917,2]
[311906915,1705492240409,-500.0,0.00021917,2]
[311906916,1705492240418,-500.0,0.00021917,2]
[311906918,1705492240427,-500.0,0.00021917,2]
[311906921,1705492240437,-500.0,0.00021917,2]
[311906923,1705492240447,-500.0,0.00021917,2]
[311906925,1705492240455,-500.0,0.00021917,2]
[311906934,1705492240529,-500.0,0.00021917,2]
[311906936,1705492240539,-500.0,0.00021917,2]
[311906938,1705492240547,-500.0,0.00021917,2]
[311906940,1705492240557,-490.57231035,0.00021917,2]
[311906941,1705492240566,-500.0,0.00021917,2]
[311906944,1705492240575,-500.0,0.00021917,2]
[311906946,1705492240584,-263.23548355,0.00021917,2]
[311906947,1705492240594,-500.0,0.00021917,2]
[311906950,1705492240603,-500.0,0.00021917,2]
[311906951,1705492240613,-500.0,0.00021917,2]
[311906954,1705492240622,-503.76,0.00021917,2]
[311906956,1705492240632,-500.0,0.00021917,2]
[311906958,1705492240641,-1568.84,0.00021917,2]
[311906960,1705492240649,-691.13,0.00021917,2]
[311906962,1705492240658,-496.38117138,0.00021917,2]
[311906964,1705492240667,-5580.57,0.00021917,2]
[311906966,1705492240676,-500.0,0.00021917,2]
[311906968,1705492240685,-500.0,0.00021917,2]
[311906969,1705492240695,-6224.26,0.00021917,2]
[311906972,1705492240704,-500.0,0.00021917,2]
[311906974,1705492240713,-500.0,0.00021917,2]
[311906975,1705492240722,-8366.28,0.00021917,2]
[311906978,1705492240734,-500.0,0.00021917,2]
[311906980,1705492240743,-27030.65,0.00021917,2]
[311906981,1705492240752,-500.0,0.00021917,2]
[311906984,1705492240761,-500.0,0.00021917,2]
[311906986,1705492240770,-500.0,0.00021917,2]
[311906987,1705492240779,-2594.69,0.00021917,2]
[311906990,1705492240788,-500.0,0.00021917,2]
[311906991,1705492240798,-2788.32,0.00021917,2]
[311906993,1705492240807,-500.0,0.00021917,2]
[311906996,1705492240816,-500.0,0.00021917,2]
[311906998,1705492240825,-788.59,0.00021917,2]
[311906999,1705492240834,-500.79749771,0.00021917,2]
[311907002,1705492240843,-486.28301242,0.00021917,2]
[311907004,1705492240852,-501.62550056,0.00021917,2]
[311907006,1705492240863,-500.0,0.00021917,2]
[311907008,1705492240872,-500.0,0.00021917,2]
[311907010,1705492240881,-500.0,0.00021917,2]
[311907012,1705492240891,-503.79040743,0.00021917,2]
[311907014,1705492240900,-224.4532379,0.00021917,2]
[311907016,1705492240910,-500.0,0.00021917,2]
[311907018,1705492240919,-500.0,0.00021917,2]
[311907020,1705492240928,-500.0,0.00021917,2]
[311907022,1705492240938,-166.666666,0.00021918,2]
[311907024,1705492240948,-153.0,0.00021918,2]
[311907026,1705492240957,-306.0,0.00021918,2]
[311907028,1705492240966,-401.0129254,0.00021918,2]
[311907030,1705492240975,-153.5245184,0.00021918,2]
[311907032,1705492240984,-202.8089301,0.00021918,2]
[311907034,1705492240993,-153.0,0.00021918,2]
[311907036,1705492241002,-153.0,0.00021918,2]
[311907038,1705492241011,-153.0,0.00021918,2]
[311907040,1705492241020,-153.0,0.00021918,2]
[311907042,1705492241029,-198.957615,0.00021918,2]
[311907043,1705492241038,-1529.34,0.00021944,2]
[311907045,1705492241046,-9111.67082876,0.00021945,2]
[311907047,1705492241055,-7801.45139057,0.00021954,2]
[311907050,1705492241065,-293.1976279,0.00022,4]
[311907052,1705492241077,-3955.54830897,0.00022,2]
[311907054,1705492241086,-157.08440165,0.00022,2]
[311907055,1705492241097,-425.53656097,0.00022,2]
[311907057,1705492241107,-154.98450155,0.00022,2]
[311907060,1705492241117,-54653.0,0.00022,2]
[311907062,1705492241126,-374.76193364,0.00022,2]
[311907064,1705492241135,-861.08586622,0.00022052,2]
[311907066,1705492241144,-174.65684969,0.00022052,2]
[311907068,1705492241154,-155.34268239,0.00022052,2]
[311907070,1705492241163,-874.96050946,0.00022052,2]
[311907072,1705492241172,-1735.50272763,0.00022052,2]
[311907074,1705492241181,-154.98450155,0.00022052,2]
[311907076,1705492241190,-155.11937889,0.00022052,2]
[311907078,1705492241199,-237.84642437,0.00022053,2]
[311907080,1705492241208,-8740.47389205,0.00022053,2]
[311907082,1705492241216,-1529.34,0.00022053,2]
[311907084,1705492241225,-1529.34,0.00022053,2]
[311907086,1705492241234,-1529.34,0.00022053,2]
[311907088,1705492241244,-1529.34,0.00022053,2]
[311907090,1705492241253,-500.0,0.00022054,2]
[311907092,1705492241263,-500.0,0.00022054,2]
[311907094,1705492241272,-500.0,0.00022054,2]
[311907096,1705492241281,-500.0,0.00022054,2]
[311907098,1705492241290,-500.0,0.00022054,2]
[311907099,1705492241299,-500.0,0.00022054,2]
[311907101,1705492241308,-500.0,0.00022054,2]
[311907104,1705492241318,-500.0,0.00022054,2]
[311907105,1705492241327,-500.0,0.00022054,2]
[311907106,1705492241336,-500.0,0.00022054,2]
[311907108,1705492241345,-500.0,0.00022054,2]
[311907110,1705492241354,-388.70818294,0.00022054,2]
[311907112,1705492241363,-551.1,0.00022054,2]
[311907114,1705492241372,-500.0,0.00022054,2]
[311907116,1705492241382,-535.84483329,0.00022054,2]
[311907118,1705492241391,-363.32405101,0.00022054,2]
[311907120,1705492241401,-500.0,0.00022054,2]
[311907122,1705492241410,-500.0,0.00022054,2]
[311907124,1705492241419,-500.0,0.00022054,2]
[311907126,1705492241428,-429.95876673,0.00022054,2]
[311907128,1705492241437,-500.0,0.00022054,2]
[311907130,1705492241446,-540.7180897,0.00022054,2]
[311907132,1705492241456,-500.0,0.00022054,2]
[311907134,1705492241465,-500.0,0.00022054,2]
[311907136,1705492241475,-566.15,0.00022054,2]
[311907138,1705492241484,-1032.62,0.00022054,2]
[311907140,1705492241493,-500.0,0.00022054,2]
[311907142,1705492241504,-500.0,0.00022054,2]
[311907144,1705492241513,-500.0,0.00022054,2]
[311907146,1705492241522,-500.0,0.00022054,2]
[311907148,1705492241530,-364.85779853,0.00022054,2]
[311907150,1705492241540,-1507.02,0.00022054,2]
[311907152,1705492241549,-2201.11,0.00022054,2]
[311907154,1705492241558,-500.0,0.00022054,2]
[311907156,1705492241567,-500.0,0.00022054,2]
[311907158,1705492241576,-500.0,0.00022054,2]
[311907160,1705492241585,-519.01649096,0.00022054,2]
[311907162,1705492241595,-2895.73,0.00022054,2]
[311907164,1705492241604,-500.0,0.00022054,2]
[311907166,1705492241615,-500.0,0.00022054,2]
[311907168,1705492241624,-500.0,0.00022054,2]
[311907170,1705492241633,-500.0,0.00022054,2]
[311907172,1705492241642,-389.81459753,0.00022054,2]
[311907174,1705492241651,-500.0,0.00022054,2]
[311907176,1705492241660,-500.0,0.00022054,2]
[311907178,1705492241669,-807.84,0.00022054,2]
[311907180,1705492241679,-500.0,0.00022054,2]
[311907182,1705492241688,-500.0,0.00022054,2]
[311907185,1705492241701,-500.0,0.00022054,2]
[311907186,1705492241710,-500.0,0.00022054,2]
[311907188,1705492241720,-500.0,0.00022054,2]
[311907191,1705492241729,-500.0,0.00022054,2]
[311907192,1705492241738,-500.0,0.00022054,2]
[311907194,1705492241747,-635.81,0.00022054,2]
[311907196,1705492241756,-718.68,0.00022054,2]
[311907198,1705492241765,-357.88867272,0.00022054,2]
[311907207,1705492241840,-500.0,0.00022054,2]
[311907209,1705492241850,-500.0,0.00022054,2]
[311907211,1705492241861,-500.0,0.00022054,2]
[311907213,1705492241871,-1083.38,0.00022054,2]
[311907215,1705492241882,-500.0,0.00022054,2]
[311907217,1705492241891,-628.95,0.00022054,2]
[311907219,1705492241901,-500.0,0.00022054,2]
[311907221,1705492241911,-500.0,0.00022054,2]
[311907223,1705492241920,-500.0,0.00022054,2]
[311907225,1705492241929,-500.0,0.00022054,2]
[311907227,1705492241938,-500.0,0.00022054,2]
[311907229,1705492241948,-500.0,0.00022054,2]
[311907231,1705492241958,-500.0,0.00022054,2]
[311907233,1705492241967,-865.83,0.00022054,2]